[Event "*** SCC Grand Prix: Titled Tuesday Blitz"]
[Site "Chess.com"]
[Date "2020.07.14"]
[Round "10"]
[White "AndrewMaco"]
[Black "RodinMihail"]
[Result "0-1"]
[WhiteElo "2606"]
[BlackElo "2488"]
[TimeControl "180+1"]
[EndTime "11:58:39 PDT"]
[Termination "RodinMihail won by resignation"]

1. e4 {[%clk 0:03:00.9]} 1... e5 {[%clk 0:02:59.5]} 2. Nf3 {[%clk 0:03:00.7]}
2... Nc6 {[%clk 0:02:59.2]} 3. Bb5 {[%clk 0:03:00.6]} 3... a6 {[%clk 0:02:59]}
4. Ba4 {[%clk 0:03:01]} 4... Bc5 {[%clk 0:02:58.3]} 5. O-O {[%clk 0:03:00.2]}
5... Nge7 {[%clk 0:02:58.2]} 6. c3 {[%clk 0:02:59.6]} 6... Ba7 {[%clk
0:02:58.1]} 7. d4 {[%clk 0:02:58.6]} 7... exd4 {[%clk 0:02:59]} 8. cxd4 {[%clk
0:02:57.3]} 8... d5 {[%clk 0:02:59.5]} 9. exd5 {[%clk 0:02:55.6]} 9... Nxd5
{[%clk 0:03:00.4]} 10. Re1+ {[%clk 0:02:52.6]} 10... Be6 {[%clk 0:03:00.9]} 11.
Bxc6+ {[%clk 0:02:45.7]} 11... bxc6 {[%clk 0:03:01.8]} 12. Bg5 {[%clk
0:02:42.5]} 12... Qd6 {[%clk 0:02:55.4]} 13. Nbd2 {[%clk 0:02:42]} 13... O-O
{[%clk 0:02:55.1]} 14. Nc4 {[%clk 0:02:38.9]} 14... Qb4 {[%clk 0:02:54.3]} 15.
Qc2 {[%clk 0:02:35.8]} 15... Rfe8 {[%clk 0:02:49.4]} 16. a3 {[%clk 0:02:34.7]}
16... Qf8 {[%clk 0:02:45.4]} 17. b4 {[%clk 0:02:33.2]} 17... f6 {[%clk
0:02:38.9]} 18. Bh4 {[%clk 0:02:32.9]} 18... Bg4 {[%clk 0:02:27]} 19. Qd3 {[%clk
0:02:09.4]} 19... Bxf3 {[%clk 0:02:24.7]} 20. Qxf3 {[%clk 0:02:09.5]} 20... Bxd4
{[%clk 0:02:22.7]} 21. Rad1 {[%clk 0:02:10.1]} 21... Rxe1+ {[%clk 0:02:14.1]}
22. Rxe1 {[%clk 0:02:09.6]} 22... Re8 {[%clk 0:02:14.1]} 23. Rd1 {[%clk
0:02:07.7]} 23... Nc3 {[%clk 0:01:47.5]} 24. Rf1 {[%clk 0:02:06.1]} 24... Re4
{[%clk 0:01:42]} 25. Bg3 {[%clk 0:02:02.2]} 25... Qf7 {[%clk 0:01:41.8]} 26. Nd2
{[%clk 0:01:58.1]} 26... Re2 {[%clk 0:01:39.3]} 27. Qd3 {[%clk 0:01:58.2]} 27...
Qd5 {[%clk 0:01:30.8]} 28. Kh1 {[%clk 0:01:58.3]} 28... Be5 {[%clk 0:01:09.7]}
29. Qxd5+ {[%clk 0:01:44.9]} 29... cxd5 {[%clk 0:01:10.6]} 30. Nf3 {[%clk
0:01:43.6]} 30... d4 {[%clk 0:01:04.5]} 31. Re1 {[%clk 0:01:29.3]} 31... d3
{[%clk 0:01:00.5]} 32. Rxe2 {[%clk 0:01:16.5]} 32... Nxe2 {[%clk 0:01:00.3]} 33.
Bxe5 {[%clk 0:01:13.9]} 33... fxe5 {[%clk 0:00:59.1]} 34. Nd2 {[%clk 0:01:13.3]}
34... Kf7 {[%clk 0:00:56.8]} 35. g3 {[%clk 0:01:11.9]} 35... Ke6 {[%clk
0:00:57.3]} 36. Kg2 {[%clk 0:01:12]} 36... Kd5 {[%clk 0:00:51.7]} 37. Kf3 {[%clk
0:01:05.8]} 37... Kd4 {[%clk 0:00:43.6]} 38. a4 {[%clk 0:01:06.2]} 38... Nc3
{[%clk 0:00:41.2]} 39. b5 {[%clk 0:01:00.7]} 39... axb5 {[%clk 0:00:40]} 40. a5
{[%clk 0:00:59.7]} 40... b4 {[%clk 0:00:38.5]} 41. a6 {[%clk 0:00:59.3]} 41...
Nb5 {[%clk 0:00:37.1]} 42. Nb3+ {[%clk 0:00:56.9]} 42... Kc3 {[%clk 0:00:36.5]}
43. Nc5 {[%clk 0:00:54]} 43... b3 {[%clk 0:00:33.9]} 44. Ke3 {[%clk 0:00:51.4]}
44... b2 {[%clk 0:00:33.7]} 45. Na4+ {[%clk 0:00:51.6]} 45... Kc2 {[%clk
0:00:31.9]} 46. Nxb2 {[%clk 0:00:52.2]} 46... Kxb2 {[%clk 0:00:32.6]} 47. Kxd3
{[%clk 0:00:52.9]} 47... Kb3 {[%clk 0:00:32.1]} 48. Ke4 {[%clk 0:00:52]} 48...
c5 {[%clk 0:00:32.4]} 49. Kd5 {[%clk 0:00:49.6]} 49... Kb4 {[%clk 0:00:32]} 50.
Kxe5 {[%clk 0:00:47.2]} 50... c4 {[%clk 0:00:32.2]} 51. f4 {[%clk 0:00:48.1]}
51... c3 {[%clk 0:00:32.3]} 52. f5 {[%clk 0:00:48.2]} 52... c2 {[%clk
0:00:32.5]} 53. g4 {[%clk 0:00:49.1]} 53... c1=Q {[%clk 0:00:32.6]} 54. h4
{[%clk 0:00:49.6]} 54... Qh6 {[%clk 0:00:32.4]} 55. h5 {[%clk 0:00:49.2]} 55...
Qf6+ {[%clk 0:00:31.4]} 56. Ke4 {[%clk 0:00:49.5]} 56... Qxa6 {[%clk 0:00:31.9]}
57. g5 {[%clk 0:00:49.6]} 57... Qd6 {[%clk 0:00:32]} 58. f6 {[%clk 0:00:49]}
58... gxf6 {[%clk 0:00:31.6]} 59. g6 {[%clk 0:00:49.9]} 59... hxg6 {[%clk
0:00:31.8]} 60. hxg6 {[%clk 0:00:50.8]} 60... Qe5+ {[%clk 0:00:28.1]} 0-1

[Event "*** SCC Grand Prix: Titled Tuesday Blitz"]
[Site "Chess.com"]
[Date "2020.07.14"]
[Round "10"]
[White "Stormeman100100"]
[Black "francyIM"]
[Result "0-1"]
[WhiteElo "2468"]
[BlackElo "2660"]
[TimeControl "180+1"]
[EndTime "11:58:40 PDT"]
[Termination "francyIM won by checkmate"]

1. Nf3 {[%clk 0:03:00.9]} 1... c5 {[%clk 0:02:59.1]} 2. b3 {[%clk 0:03:00]} 2...
d6 {[%clk 0:02:56.4]} 3. Bb2 {[%clk 0:02:51.7]} 3... Nc6 {[%clk 0:02:52.3]} 4.
g3 {[%clk 0:02:44.7]} 4... e5 {[%clk 0:02:50.3]} 5. d3 {[%clk 0:02:44.4]} 5...
g6 {[%clk 0:02:51.2]} 6. Bg2 {[%clk 0:02:44.5]} 6... Bg7 {[%clk 0:02:52.1]} 7.
O-O {[%clk 0:02:44.7]} 7... Nge7 {[%clk 0:02:50]} 8. c4 {[%clk 0:02:44.7]} 8...
O-O {[%clk 0:02:50]} 9. Nc3 {[%clk 0:02:44.9]} 9... h6 {[%clk 0:02:50.1]} 10.
Nd2 {[%clk 0:02:41.3]} 10... Rb8 {[%clk 0:02:48.7]} 11. Nd5 {[%clk 0:02:33.8]}
11... a6 {[%clk 0:02:45.9]} 12. f4 {[%clk 0:02:21.5]} 12... b5 {[%clk
0:02:41.9]} 13. cxb5 {[%clk 0:02:19.2]} 13... axb5 {[%clk 0:02:42.8]} 14. Nxe7+
{[%clk 0:02:12.7]} 14... Nxe7 {[%clk 0:02:43.7]} 15. fxe5 {[%clk 0:02:12.4]}
15... dxe5 {[%clk 0:02:36.2]} 16. Ne4 {[%clk 0:02:04.2]} 16... Bb7 {[%clk
0:02:34.8]} 17. Nf6+ {[%clk 0:01:50.3]} 17... Bxf6 {[%clk 0:02:33.7]} 18. Rxf6
{[%clk 0:01:51]} 18... Bxg2 {[%clk 0:02:34.1]} 19. Kxg2 {[%clk 0:01:51.9]} 19...
Nf5 {[%clk 0:02:35]} 20. Rxf5 {[%clk 0:01:41.4]} 20... gxf5 {[%clk 0:02:35.9]}
21. Qc1 {[%clk 0:01:19.4]} 21... Qd6 {[%clk 0:02:31.1]} 22. Qe3 {[%clk
0:01:16.6]} 22... Rfe8 {[%clk 0:02:25.8]} 23. Rf1 {[%clk 0:01:14.9]} 23... f4
{[%clk 0:02:18.6]} 24. Qe4 {[%clk 0:01:04.6]} 24... Qg6 {[%clk 0:02:17.3]} 25.
Qd5 {[%clk 0:00:48.7]} 25... Rbc8 {[%clk 0:01:32.7]} 26. Bxe5 {[%clk 0:00:15]}
26... fxg3 {[%clk 0:01:30.7]} 27. Rf3 {[%clk 0:00:09.5]} 27... gxh2+ {[%clk
0:00:37.1]} 28. Rg3 {[%clk 0:00:09.4]} 28... Qxg3+ {[%clk 0:00:37.4]} 29. Bxg3
{[%clk 0:00:08.9]} 29... Rxe2+ {[%clk 0:00:37.3]} 30. Kh3 {[%clk 0:00:07.5]}
30... Rce8 {[%clk 0:00:35]} 31. Bxh2 {[%clk 0:00:07]} 31... R8e3+ {[%clk
0:00:34.3]} 32. Bg3 {[%clk 0:00:07.3]} 32... Rd2 {[%clk 0:00:34.1]} 33. Qd8+
{[%clk 0:00:07.2]} 33... Kg7 {[%clk 0:00:33.3]} 34. Qd6 {[%clk 0:00:05.5]} 34...
Rdxd3 {[%clk 0:00:33.2]} 35. Qxc5 {[%clk 0:00:05.4]} 35... Rxg3+ {[%clk
0:00:32.7]} 36. Kh2 {[%clk 0:00:05.9]} 36... Rg5 {[%clk 0:00:32.2]} 37. Qc2
{[%clk 0:00:04.9]} 37... Rd6 {[%clk 0:00:28.2]} 38. Qb2+ {[%clk 0:00:04.8]}
38... Kg8 {[%clk 0:00:27.3]} 39. a4 {[%clk 0:00:05.7]} 39... Rdg6 {[%clk
0:00:26.8]} 40. Qa2 {[%clk 0:00:05.1]} 40... Rh5# {[%clk 0:00:26.6]} 0-1

[Event "*** SCC Grand Prix: Titled Tuesday Blitz"]
[Site "Chess.com"]
[Date "2020.07.14"]
[Round "10"]
[White "Slovak_fighter2000"]
[Black "Miss_JJ20"]
[Result "1-0"]
[WhiteElo "2447"]
[BlackElo "2291"]
[TimeControl "180+1"]
[EndTime "11:58:42 PDT"]
[Termination "Slovak_fighter2000 won by resignation"]

1. d4 {[%clk 0:02:46.5]} 1... Nf6 {[%clk 0:02:58.5]} 2. Bf4 {[%clk 0:02:44.9]}
2... d5 {[%clk 0:02:58.1]} 3. Nf3 {[%clk 0:02:44.3]} 3... c5 {[%clk 0:02:56.6]}
4. e3 {[%clk 0:02:44.3]} 4... Nc6 {[%clk 0:02:56.8]} 5. Nbd2 {[%clk 0:02:43.7]}
5... Nh5 {[%clk 0:02:48.5]} 6. Bg5 {[%clk 0:02:38.7]} 6... h6 {[%clk 0:02:46.2]}
7. Bh4 {[%clk 0:02:38.5]} 7... g5 {[%clk 0:02:44.2]} 8. Bg3 {[%clk 0:02:37]}
8... cxd4 {[%clk 0:02:42]} 9. exd4 {[%clk 0:02:36.1]} 9... Bg4 {[%clk
0:02:36.1]} 10. c3 {[%clk 0:02:34.2]} 10... Qb6 {[%clk 0:02:27.6]} 11. Qb3
{[%clk 0:02:33.2]} 11... Qxb3 {[%clk 0:02:22.8]} 12. axb3 {[%clk 0:02:34.1]}
12... Nxg3 {[%clk 0:02:21.2]} 13. hxg3 {[%clk 0:02:33.5]} 13... Bg7 {[%clk
0:02:15.3]} 14. Bd3 {[%clk 0:02:26.8]} 14... a6 {[%clk 0:02:11.6]} 15. b4 {[%clk
0:02:20.7]} 15... O-O {[%clk 0:02:07.1]} 16. O-O {[%clk 0:02:14.7]} 16... e6
{[%clk 0:01:31.5]} 17. Nb3 {[%clk 0:02:06.9]} 17... Rac8 {[%clk 0:00:57]} 18.
Nc5 {[%clk 0:02:03.4]} 18... Rc7 {[%clk 0:00:56.8]} 19. b5 {[%clk 0:01:52.2]}
19... axb5 {[%clk 0:00:56.1]} 20. Bxb5 {[%clk 0:01:53.1]} 20... Re8 {[%clk
0:00:56.4]} 21. Nxb7 {[%clk 0:01:39.6]} 21... Rb8 {[%clk 0:00:49.8]} 22. Bxc6
{[%clk 0:01:31.9]} 22... Rxc6 {[%clk 0:00:49.3]} 23. Na5 {[%clk 0:01:27.3]}
23... Rc7 {[%clk 0:00:46.2]} 24. Ra2 {[%clk 0:01:16.7]} 24... Bf5 {[%clk
0:00:38.9]} 25. Ne5 {[%clk 0:00:55.5]} 25... f6 {[%clk 0:00:29.5]} 26. Nec6
{[%clk 0:00:51.8]} 26... Rb6 {[%clk 0:00:29.4]} 27. Nb4 {[%clk 0:00:51.3]} 27...
Bf8 {[%clk 0:00:23.5]} 28. Ra4 {[%clk 0:00:43.1]} 28... Ra7 {[%clk 0:00:22.7]}
29. Rfa1 {[%clk 0:00:33]} 29... Kg7 {[%clk 0:00:11.7]} 30. Nac6 {[%clk
0:00:32.2]} 30... Rc7 {[%clk 0:00:12]} 31. Ra7 {[%clk 0:00:31.4]} 31... Rxc6
{[%clk 0:00:12.3]} 32. Nxc6 {[%clk 0:00:31.2]} 32... Rxa7 {[%clk 0:00:11.4]} 33.
Rxa7+ {[%clk 0:00:31.6]} 33... Kg6 {[%clk 0:00:12.3]} 34. Ne7+ {[%clk
0:00:31.7]} 34... Kh5 {[%clk 0:00:12.1]} 35. Nxf5 {[%clk 0:00:31.7]} 35... exf5
{[%clk 0:00:12.7]} 36. Rf7 {[%clk 0:00:31.5]} 36... Bd6 {[%clk 0:00:09.5]} 37.
Rxf6 {[%clk 0:00:31.6]} 37... Be7 {[%clk 0:00:09.6]} 38. Rxf5 {[%clk 0:00:31.7]}
38... Kg4 {[%clk 0:00:09.4]} 39. Rxd5 {[%clk 0:00:31.6]} 39... Kh5 {[%clk
0:00:07.5]} 40. f3 {[%clk 0:00:31.2]} 40... Kg6 {[%clk 0:00:07.3]} 41. g4 {[%clk
0:00:31.2]} 41... Kf6 {[%clk 0:00:07]} 42. Rb5 {[%clk 0:00:31.6]} 42... Ke6
{[%clk 0:00:07.2]} 43. Kf2 {[%clk 0:00:31.5]} 43... Kd6 {[%clk 0:00:07.1]} 44.
Rb6+ {[%clk 0:00:31.3]} 44... Kc7 {[%clk 0:00:07.2]} 45. Rxh6 {[%clk 0:00:30.7]}
1-0

[Event "*** SCC Grand Prix: Titled Tuesday Blitz"]
[Site "Chess.com"]
[Date "2020.07.14"]
[Round "10"]
[White "WeAintSurePal"]
[Black "Alexandercs432"]
[Result "1-0"]
[WhiteElo "2271"]
[BlackElo "2096"]
[TimeControl "180+1"]
[EndTime "11:58:42 PDT"]
[Termination "WeAintSurePal won by checkmate"]

1. e4 {[%clk 0:03:00.9]} 1... e5 {[%clk 0:02:59.3]} 2. Nf3 {[%clk 0:02:54.7]}
2... Nf6 {[%clk 0:02:59.6]} 3. Nc3 {[%clk 0:02:53.3]} 3... Nc6 {[%clk
0:02:59.3]} 4. Bb5 {[%clk 0:02:51]} 4... Bb4 {[%clk 0:02:58]} 5. O-O {[%clk
0:02:49.2]} 5... O-O {[%clk 0:02:57.5]} 6. Nd5 {[%clk 0:02:44.1]} 6... Bc5
{[%clk 0:01:34.2]} 7. Bxc6 {[%clk 0:02:23.5]} 7... dxc6 {[%clk 0:01:35.1]} 8.
Nxf6+ {[%clk 0:02:19.9]} 8... Qxf6 {[%clk 0:01:33.8]} 9. h3 {[%clk 0:02:20.8]}
9... Be6 {[%clk 0:01:26]} 10. d3 {[%clk 0:02:10.7]} 10... h6 {[%clk 0:01:26.2]}
11. Qe2 {[%clk 0:02:09.9]} 11... Rfd8 {[%clk 0:01:16.3]} 12. Bd2 {[%clk
0:02:09.7]} 12... a5 {[%clk 0:01:14.2]} 13. Bc3 {[%clk 0:02:06]} 13... Bd6
{[%clk 0:01:08.2]} 14. Nh2 {[%clk 0:02:06.1]} 14... Qg6 {[%clk 0:00:59.2]} 15.
Qf3 {[%clk 0:02:05.4]} 15... c5 {[%clk 0:00:50]} 16. Ng4 {[%clk 0:02:01.4]}
16... Bxg4 {[%clk 0:00:31.6]} 17. Qxg4 {[%clk 0:01:58.1]} 17... Qxg4 {[%clk
0:00:30.5]} 18. hxg4 {[%clk 0:01:59]} 18... b5 {[%clk 0:00:22.1]} 19. f3 {[%clk
0:01:58.2]} 19... b4 {[%clk 0:00:21.1]} 20. Bd2 {[%clk 0:01:57.8]} 20... g5
{[%clk 0:00:19.8]} 21. Be3 {[%clk 0:01:57.7]} 21... Kg7 {[%clk 0:00:18.5]} 22.
Kf2 {[%clk 0:01:58.6]} 22... Kg6 {[%clk 0:00:17.7]} 23. Rh1 {[%clk 0:01:58.5]}
23... Rh8 {[%clk 0:00:17.5]} 24. Rh5 {[%clk 0:01:58.5]} 24... c6 {[%clk
0:00:16.5]} 25. Rah1 {[%clk 0:01:58.8]} 25... f6 {[%clk 0:00:14.8]} 26. Rd1
{[%clk 0:01:57.6]} 26... a4 {[%clk 0:00:14.3]} 27. Rd2 {[%clk 0:01:54.8]} 27...
a3 {[%clk 0:00:14.4]} 28. b3 {[%clk 0:01:54.6]} 28... Rad8 {[%clk 0:00:13.9]}
29. Rh1 {[%clk 0:01:53.5]} 29... Be7 {[%clk 0:00:13.9]} 30. Rc1 {[%clk
0:01:53.7]} 30... Rd7 {[%clk 0:00:13.9]} 31. Ke2 {[%clk 0:01:52]} 31... Rdd8
{[%clk 0:00:12.5]} 32. c3 {[%clk 0:01:51.5]} 32... Rc8 {[%clk 0:00:05.1]} 33.
cxb4 {[%clk 0:01:51.4]} 33... cxb4 {[%clk 0:00:06]} 34. Rc4 {[%clk 0:01:51.5]}
34... Rhd8 {[%clk 0:00:02]} 35. Rdc2 {[%clk 0:01:51.7]} 35... Rd6 {[%clk
0:00:01.9]} 36. Bc5 {[%clk 0:01:51]} 36... Re6 {[%clk 0:00:02]} 37. Bxe7 {[%clk
0:01:50.7]} 37... Rxe7 {[%clk 0:00:02.9]} 38. Rxc6 {[%clk 0:01:50.9]} 38... Rxc6
{[%clk 0:00:02.8]} 39. Rxc6 {[%clk 0:01:51.8]} 39... Rb7 {[%clk 0:00:03.1]} 40.
Ke3 {[%clk 0:01:51.9]} 40... Rb8 {[%clk 0:00:02.6]} 41. Rc7 {[%clk 0:01:51.5]}
41... Rb6 {[%clk 0:00:02.5]} 42. d4 {[%clk 0:01:51.3]} 42... exd4+ {[%clk
0:00:01.9]} 43. Kxd4 {[%clk 0:01:52.2]} 43... Rb8 {[%clk 0:00:02]} 44. Kc4
{[%clk 0:01:51.5]} 44... Rb6 {[%clk 0:00:02.1]} 45. Rc5 {[%clk 0:01:50.6]} 45...
Rb8 {[%clk 0:00:02.4]} 46. Rb5 {[%clk 0:01:50.6]} 46... Rd8 {[%clk 0:00:03]} 47.
Kxb4 {[%clk 0:01:49.5]} 47... Rd2 {[%clk 0:00:03.4]} 48. Kxa3 {[%clk 0:01:49.1]}
48... Rxg2 {[%clk 0:00:03.8]} 49. Rf5 {[%clk 0:01:49.3]} 49... Rg3 {[%clk
0:00:04.1]} 50. b4 {[%clk 0:01:48.9]} 50... h5 {[%clk 0:00:04.5]} 51. gxh5+
{[%clk 0:01:49.5]} 51... Kxh5 {[%clk 0:00:04.5]} 52. b5 {[%clk 0:01:49.9]} 52...
Kh4 {[%clk 0:00:04.1]} 53. Kb4 {[%clk 0:01:49.5]} 53... g4 {[%clk 0:00:04.7]}
54. fxg4 {[%clk 0:01:50.4]} 54... Kxg4 {[%clk 0:00:04.8]} 55. Rxf6 {[%clk
0:01:50.3]} 55... Re3 {[%clk 0:00:04]} 56. Re6 {[%clk 0:01:48.5]} 56... Kf4
{[%clk 0:00:03.4]} 57. a4 {[%clk 0:01:48.4]} 57... Re1 {[%clk 0:00:02.4]} 58. b6
{[%clk 0:01:48]} 58... Ke3 {[%clk 0:00:02.8]} 59. a5 {[%clk 0:01:47.4]} 59...
Kd3 {[%clk 0:00:03.4]} 60. Kb5 {[%clk 0:01:46.5]} 60... Rb1+ {[%clk 0:00:03.9]}
61. Kc6 {[%clk 0:01:46.5]} 61... Kd4 {[%clk 0:00:03.6]} 62. a6 {[%clk
0:01:46.2]} 62... Kc4 {[%clk 0:00:03.2]} 63. a7 {[%clk 0:01:46]} 63... Ra1
{[%clk 0:00:02.8]} 64. Kb7 {[%clk 0:01:45.5]} 64... Kb5 {[%clk 0:00:02.2]} 65.
a8=Q {[%clk 0:01:45.6]} 65... Rh1 {[%clk 0:00:02.5]} 66. Qa6+ {[%clk 0:01:44.7]}
66... Kb4 {[%clk 0:00:02.6]} 67. Ka7 {[%clk 0:01:42.9]} 67... Rh7+ {[%clk
0:00:01.6]} 68. b7 {[%clk 0:01:43.1]} 68... Rh8 {[%clk 0:00:02.2]} 69. Qb6+
{[%clk 0:01:42.8]} 69... Kc3 {[%clk 0:00:03.1]} 70. Rc6+ {[%clk 0:01:42.8]}
70... Kd2 {[%clk 0:00:04]} 71. Qb2+ {[%clk 0:01:42.6]} 71... Ke1 {[%clk
0:00:04.9]} 72. Rc1# {[%clk 0:01:42.4]} 1-0

[Event "*** SCC Grand Prix: Titled Tuesday Blitz"]
[Site "Chess.com"]
[Date "2020.07.14"]
[Round "10"]
[White "ChessicallyInclined"]
[Black "GGfrances"]
[Result "0-1"]
[WhiteElo "2501"]
[BlackElo "2408"]
[TimeControl "180+1"]
[EndTime "11:58:45 PDT"]
[Termination "GGfrances won by checkmate"]

1. d4 {[%clk 0:03:00.9]} 1... Nf6 {[%clk 0:02:59.4]} 2. c4 {[%clk 0:03:01.4]}
2... g6 {[%clk 0:02:59.2]} 3. Nc3 {[%clk 0:03:01.3]} 3... Bg7 {[%clk 0:02:58.4]}
4. e4 {[%clk 0:03:01.9]} 4... O-O {[%clk 0:02:58]} 5. f3 {[%clk 0:03:02.4]} 5...
d6 {[%clk 0:02:53.4]} 6. Be3 {[%clk 0:03:02]} 6... Nc6 {[%clk 0:02:51.7]} 7.
Nge2 {[%clk 0:03:02.3]} 7... a6 {[%clk 0:02:49.5]} 8. Qd2 {[%clk 0:03:02.5]}
8... Rb8 {[%clk 0:02:42.5]} 9. Rc1 {[%clk 0:02:56.7]} 9... Bd7 {[%clk
0:02:38.2]} 10. Nd1 {[%clk 0:02:56]} 10... b5 {[%clk 0:02:36.3]} 11. c5 {[%clk
0:02:53.3]} 11... e6 {[%clk 0:02:28.6]} 12. Nf2 {[%clk 0:02:46.1]} 12... Ne8
{[%clk 0:02:25.1]} 13. g3 {[%clk 0:02:44.5]} 13... f5 {[%clk 0:02:19.7]} 14. Bg2
{[%clk 0:02:37.7]} 14... Nf6 {[%clk 0:02:16.8]} 15. O-O {[%clk 0:02:32.4]} 15...
Qe7 {[%clk 0:02:11.7]} 16. d5 {[%clk 0:02:22.3]} 16... exd5 {[%clk 0:02:08.6]}
17. exd5 {[%clk 0:02:23.2]} 17... Ne5 {[%clk 0:02:05.5]} 18. c6 {[%clk 0:02:22]}
18... Bc8 {[%clk 0:02:00.6]} 19. Nh3 {[%clk 0:02:08.8]} 19... Nc4 {[%clk
0:01:57]} 20. Rxc4 {[%clk 0:02:08.6]} 20... bxc4 {[%clk 0:01:57.5]} 21. Nc3
{[%clk 0:02:03.3]} 21... Rxb2 {[%clk 0:01:51.8]} 22. Qxb2 {[%clk 0:02:00.8]}
22... Qxe3+ {[%clk 0:01:49.4]} 23. Nf2 {[%clk 0:02:01.4]} 23... Re8 {[%clk
0:01:38.3]} 24. Qc2 {[%clk 0:01:53.6]} 24... h5 {[%clk 0:01:33.8]} 25. Kh1
{[%clk 0:01:40.3]} 25... h4 {[%clk 0:01:31.3]} 26. Nfd1 {[%clk 0:01:26]} 26...
Qh6 {[%clk 0:01:27.6]} 27. Kg1 {[%clk 0:01:20.2]} 27... h3 {[%clk 0:01:25]} 28.
Bh1 {[%clk 0:01:19.7]} 28... f4 {[%clk 0:01:19.3]} 29. g4 {[%clk 0:01:00.4]}
29... Qg5 {[%clk 0:01:13]} 30. Qd2 {[%clk 0:00:51.2]} 30... Nxg4 {[%clk
0:01:09.2]} 31. fxg4 {[%clk 0:00:48.6]} 31... Qxg4+ {[%clk 0:01:05.5]} 32. Kf2
{[%clk 0:00:48.7]} 32... Qh4+ {[%clk 0:01:00.5]} 33. Kg1 {[%clk 0:00:47.5]}
33... Qg5+ {[%clk 0:00:52.8]} 34. Kf2 {[%clk 0:00:42.7]} 34... Bf5 {[%clk
0:00:47.1]} 35. Bf3 {[%clk 0:00:36.3]} 35... Bd3 {[%clk 0:00:43.4]} 36. Ne2
{[%clk 0:00:34.9]} 36... Qh4+ {[%clk 0:00:40.4]} 37. Kg1 {[%clk 0:00:34.4]}
37... Rxe2 {[%clk 0:00:35.5]} 38. Bxe2 {[%clk 0:00:28]} 38... Bd4+ {[%clk
0:00:32.7]} 39. Kh1 {[%clk 0:00:26.3]} 39... Qg5 {[%clk 0:00:27.6]} 40. Bf3
{[%clk 0:00:11.1]} 40... Bxf1 {[%clk 0:00:19.4]} 41. Qxd4 {[%clk 0:00:11.2]}
41... Bg2+ {[%clk 0:00:16.2]} 42. Kg1 {[%clk 0:00:11.6]} 42... Bxf3+ {[%clk
0:00:15.8]} 43. Kf1 {[%clk 0:00:10.5]} 43... Qg2+ {[%clk 0:00:16.1]} 44. Ke1
{[%clk 0:00:10.8]} 44... Qe2# {[%clk 0:00:16.7]} 0-1

[Event "*** SCC Grand Prix: Titled Tuesday Blitz"]
[Site "Chess.com"]
[Date "2020.07.14"]
[Round "10"]
[White "TimofeevAr"]
[Black "bgfbfbgfbgfgf"]
[Result "1-0"]
[WhiteElo "2808"]
[BlackElo "2671"]
[TimeControl "180+1"]
[EndTime "11:58:47 PDT"]
[Termination "TimofeevAr won by resignation"]

1. c4 {[%clk 0:03:00.9]} 1... Nf6 {[%clk 0:02:59.3]} 2. Nc3 {[%clk 0:03:00.2]}
2... g6 {[%clk 0:02:58.9]} 3. g3 {[%clk 0:02:59.5]} 3... Bg7 {[%clk 0:02:58.9]}
4. Bg2 {[%clk 0:02:59.7]} 4... O-O {[%clk 0:02:59.8]} 5. d3 {[%clk 0:02:59.7]}
5... d6 {[%clk 0:03:00.1]} 6. Nf3 {[%clk 0:02:59.1]} 6... c5 {[%clk 0:02:50.2]}
7. Bd2 {[%clk 0:02:58]} 7... Nc6 {[%clk 0:02:50.4]} 8. Qc1 {[%clk 0:02:58]} 8...
Re8 {[%clk 0:02:43.1]} 9. Bh6 {[%clk 0:02:56.8]} 9... Bh8 {[%clk 0:02:43.2]} 10.
O-O {[%clk 0:02:57]} 10... a6 {[%clk 0:02:28.7]} 11. a3 {[%clk 0:02:51.9]} 11...
Rb8 {[%clk 0:02:27.1]} 12. Rb1 {[%clk 0:02:51.5]} 12... b5 {[%clk 0:02:23.4]}
13. cxb5 {[%clk 0:02:51.4]} 13... axb5 {[%clk 0:02:24.3]} 14. b4 {[%clk
0:02:51.9]} 14... cxb4 {[%clk 0:02:22.9]} 15. axb4 {[%clk 0:02:51.9]} 15... Bd7
{[%clk 0:02:22.5]} 16. Qd2 {[%clk 0:02:49.8]} 16... Ng4 {[%clk 0:02:05.2]} 17.
Bf4 {[%clk 0:02:46]} 17... h5 {[%clk 0:01:46.6]} 18. Rfc1 {[%clk 0:02:39.2]}
18... Nd4 {[%clk 0:01:29.6]} 19. Nd5 {[%clk 0:02:27.2]} 19... Nxf3+ {[%clk
0:01:10.6]} 20. Bxf3 {[%clk 0:02:25.8]} 20... Ne5 {[%clk 0:01:02.1]} 21. Bg2
{[%clk 0:02:25.6]} 21... e6 {[%clk 0:00:44.2]} 22. Nc7 {[%clk 0:01:38.8]} 22...
Re7 {[%clk 0:00:42.4]} 23. Rc2 {[%clk 0:01:39.1]} 23... Be8 {[%clk 0:00:15.1]}
24. Rbc1 {[%clk 0:01:36.6]} 24... d5 {[%clk 0:00:15.5]} 25. Na6 {[%clk
0:01:32.8]} 25... Ra8 {[%clk 0:00:14.2]} 26. Nc5 {[%clk 0:01:31.7]} 26... Rea7
{[%clk 0:00:13.4]} 27. e4 {[%clk 0:01:10.5]} 27... dxe4 {[%clk 0:00:11.7]} 28.
Bxe4 {[%clk 0:01:10.3]} 28... Ra1 {[%clk 0:00:07.4]} 29. Bxe5 {[%clk 0:01:07.2]}
29... Bxe5 {[%clk 0:00:05.9]} 30. Bxa8 {[%clk 0:01:07.1]} 30... Qxa8 {[%clk
0:00:06.8]} 31. Ne4 {[%clk 0:01:03.3]} 31... Kg7 {[%clk 0:00:05.5]} 32. Rxa1
{[%clk 0:00:51.3]} 32... Qxa1+ {[%clk 0:00:05.1]} 33. Rc1 {[%clk 0:00:51.7]}
33... Qa3 {[%clk 0:00:03.7]} 34. h4 {[%clk 0:00:44]} 34... Bd7 {[%clk
0:00:03.4]} 35. Nc5 {[%clk 0:00:42.8]} 35... Bc6 {[%clk 0:00:02.9]} 36. Nxe6+
{[%clk 0:00:42]} 36... fxe6 {[%clk 0:00:03.5]} 37. Rxc6 {[%clk 0:00:42.1]} 37...
Bd4 {[%clk 0:00:03.1]} 38. Rc7+ {[%clk 0:00:39.2]} 38... Kg8 {[%clk 0:00:02.3]}
39. Qe2 {[%clk 0:00:34.2]} 39... Qa1+ {[%clk 0:00:01.4]} 40. Kh2 {[%clk
0:00:33.4]} 40... Qa8 {[%clk 0:00:02]} 41. Qxe6+ {[%clk 0:00:29.8]} 41... Kh8
{[%clk 0:00:01.5]} 42. Qd7 {[%clk 0:00:27.7]} 1-0